[Event "Live Chess"]
[Site "Chess.com"]
[Date "2023.05.20"]
[Round "-"]
[White "chessfiction"]
[Black "VovaOvchar1990"]
[Result "1-0"]
[WhiteElo "2429"]
[BlackElo "1213"]
[TimeControl "300"]
[EndTime "13:24:42 PDT"]
[Termination "chessfiction won on time"]

1. e4 {[%clk 0:04:57.1]} 1... e5 {[%clk 0:04:58.7]} 2. Bc4 {[%clk 0:04:56.3]}
2... Bc5 {[%clk 0:04:56.8]} 3. Qf3 {[%clk 0:04:54.5]} 3... Nf6 {[%clk
0:04:53.3]} 4. c3 {[%clk 0:04:53.1]} 4... O-O {[%clk 0:04:51]} 5. Ne2 {[%clk
0:04:51.9]} 5... h6 {[%clk 0:04:49.1]} 6. d4 {[%clk 0:04:50.3]} 6... exd4 {[%clk
0:04:47.7]} 7. cxd4 {[%clk 0:04:50.2]} 7... Bb4+ {[%clk 0:04:45.5]} 8. Nbc3
{[%clk 0:04:48.6]} 8... d6 {[%clk 0:04:40.1]} 9. h3 {[%clk 0:04:46.8]} 9... c5
{[%clk 0:04:35.8]} 10. Be3 {[%clk 0:04:44.5]} 10... Bd7 {[%clk 0:04:21.6]} 11.
O-O-O {[%clk 0:04:42.7]} 11... b5 {[%clk 0:04:19]} 12. Bd5 {[%clk 0:04:40.7]}
12... Nxd5 {[%clk 0:04:11]} 13. Nxd5 {[%clk 0:04:40.6]} 13... Be6 {[%clk
0:03:59.3]} 14. Nef4 {[%clk 0:04:36.5]} 14... cxd4 {[%clk 0:03:48.3]} 15. Bxd4
{[%clk 0:04:33.4]} 15... Na6 {[%clk 0:03:38.4]} 16. Nxe6 {[%clk 0:04:26.3]}
16... fxe6 {[%clk 0:03:35.4]} 17. Qg4 {[%clk 0:04:25.7]} 17... Qg5+ {[%clk
0:03:16]} 18. Qxg5 {[%clk 0:04:16.6]} 18... hxg5 {[%clk 0:03:14.7]} 19. Ne3
{[%clk 0:04:14.3]} 19... e5 {[%clk 0:03:04.4]} 20. Bc3 {[%clk 0:04:13.5]} 20...
Bc5 {[%clk 0:02:59]} 21. Nf5 {[%clk 0:04:11.6]} 21... Rad8 {[%clk 0:02:48.8]}
22. h4 {[%clk 0:04:09.9]} 22... g6 {[%clk 0:02:40.5]} 23. Ne7+ {[%clk
0:04:07.5]} 23... Kg7 {[%clk 0:02:33.4]} 24. hxg5 {[%clk 0:04:05.6]} 24... Rxf2
{[%clk 0:02:28.5]} 25. Rh6 {[%clk 0:04:03.8]} 25... Rxg2 {[%clk 0:02:21.4]} 26.
Rxg6+ {[%clk 0:04:02.3]} 26... Kf7 {[%clk 0:02:17.2]} 27. Bxe5 {[%clk
0:03:59.1]} 27... Kxe7 {[%clk 0:01:58.4]} 28. Bf6+ {[%clk 0:03:56.4]} 28... Kf7
{[%clk 0:01:53.7]} 29. Rg7+ {[%clk 0:03:55]} 29... Kf8 {[%clk 0:01:50.1]} 30.
Rh1 {[%clk 0:03:54.1]} 30... Be3+ {[%clk 0:01:33.9]} 31. Kb1 {[%clk 0:03:52.2]}
31... Rg1+ {[%clk 0:01:03.1]} 32. Rxg1 {[%clk 0:03:50.9]} 32... Bxg1 {[%clk
0:01:02.4]} 33. Rxa7 {[%clk 0:03:48.6]} 33... Nc5 {[%clk 0:00:57.7]} 34. Bxd8
{[%clk 0:03:46.8]} 34... Nxe4 {[%clk 0:00:35.7]} 35. Rb7 {[%clk 0:03:42.4]}
35... Ke8 {[%clk 0:00:28.5]} 36. Bf6 {[%clk 0:03:40.3]} 36... Nxf6 {[%clk
0:00:26.1]} 37. gxf6 {[%clk 0:03:37.7]} 37... Bh2 {[%clk 0:00:22.2]} 38. f7+
{[%clk 0:03:37.6]} 38... Kf8 {[%clk 0:00:20.8]} 39. Kc2 {[%clk 0:03:35.6]} 39...
Be5 {[%clk 0:00:19.1]} 40. Kd3 {[%clk 0:03:35.5]} 40... b4 {[%clk 0:00:17.5]}
41. Ke4 {[%clk 0:03:35.4]} 41... b3 {[%clk 0:00:15.3]} 42. a4 {[%clk 0:03:34]}
42... Bxb2 {[%clk 0:00:10.1]} 43. Kf5 {[%clk 0:03:33.2]} 43... Be5 {[%clk
0:00:07.5]} 44. Ke6 {[%clk 0:03:31.6]} 44... b2 {[%clk 0:00:06.6]} 45. Rb8+
{[%clk 0:03:30.8]} 45... Kg7 {[%clk 0:00:02.9]} 46. f8=Q+ {[%clk 0:03:30.7]}
46... Kg6 {[%clk 0:00:01.6]} 47. Qg8+ {[%clk 0:03:29.1]} 1-0

[Event "Live Chess"]
[Site "Chess.com"]
[Date "2023.05.20"]
[Round "-"]
[White "diana21strabt"]
[Black "GEMdzq"]
[Result "0-1"]
[WhiteElo "1682"]
[BlackElo "2257"]
[TimeControl "300"]
[EndTime "13:24:47 PDT"]
[Termination "GEMdzq won by resignation"]

1. e4 {[%clk 0:04:57.4]} 1... d6 {[%clk 0:04:58.8]} 2. Nf3 {[%clk 0:04:56]} 2...
Nf6 {[%clk 0:04:58.4]} 3. Nc3 {[%clk 0:04:54.3]} 3... g6 {[%clk 0:04:57.7]} 4.
d4 {[%clk 0:04:52.9]} 4... Bg7 {[%clk 0:04:57.3]} 5. Bd3 {[%clk 0:04:48.3]} 5...
c6 {[%clk 0:04:45.5]} 6. h3 {[%clk 0:04:46.6]} 6... b5 {[%clk 0:04:37.1]} 7. a4
{[%clk 0:04:45]} 7... b4 {[%clk 0:04:32.6]} 8. Ne2 {[%clk 0:04:43.9]} 8... a5
{[%clk 0:04:29.8]} 9. e5 {[%clk 0:04:39.9]} 9... Nd5 {[%clk 0:04:23.9]} 10. c4
{[%clk 0:04:33.4]} 10... bxc3 {[%clk 0:04:18.3]} 11. Nxc3 {[%clk 0:04:30]} 11...
O-O {[%clk 0:04:14.5]} 12. Nxd5 {[%clk 0:04:27.3]} 12... cxd5 {[%clk 0:04:14.4]}
13. O-O {[%clk 0:04:23.1]} 13... Nc6 {[%clk 0:04:07.3]} 14. Be3 {[%clk
0:04:21.3]} 14... dxe5 {[%clk 0:04:01.7]} 15. dxe5 {[%clk 0:04:20.1]} 15... Nxe5
{[%clk 0:04:00.8]} 16. Nxe5 {[%clk 0:04:18.3]} 16... Bxe5 {[%clk 0:04:00.7]} 17.
Qb3 {[%clk 0:04:16.3]} 17... Be6 {[%clk 0:03:53]} 18. Bb6 {[%clk 0:04:14.1]}
18... Qd6 {[%clk 0:03:45.6]} 19. Rfe1 {[%clk 0:03:48.2]} 19... Rfb8 {[%clk
0:03:36.6]} 20. Qa3 {[%clk 0:03:23.2]} 20... Rxb6 {[%clk 0:03:32.4]} 21. Qxd6
{[%clk 0:03:20.7]} 21... Bxd6 {[%clk 0:03:32.3]} 22. Bb5 {[%clk 0:03:18.1]}
22... Rc8 {[%clk 0:03:24.1]} 23. Rac1 {[%clk 0:03:15.7]} 23... Rxc1 {[%clk
0:03:20.3]} 24. Rxc1 {[%clk 0:03:14.6]} 24... Kg7 {[%clk 0:03:16.2]} 25. Kf1
{[%clk 0:03:12.8]} 25... Be5 {[%clk 0:03:08.9]} 26. Ke2 {[%clk 0:03:11.2]} 26...
Bxb2 {[%clk 0:03:04.5]} 27. Rb1 {[%clk 0:03:09]} 27... Bd4 {[%clk 0:03:00.1]}
28. g4 {[%clk 0:03:05.5]} 28... h5 {[%clk 0:02:57.6]} 29. Kd3 {[%clk 0:03:03.9]}
29... Bxf2 {[%clk 0:02:55.8]} 0-1

[Event "Live Chess"]
[Site "Chess.com"]
[Date "2023.05.20"]
[Round "-"]
[White "BostonStrangler"]
[Black "FlyingChessKestrel13"]
[Result "1/2-1/2"]
[WhiteElo "2046"]
[BlackElo "2121"]
[TimeControl "300"]
[EndTime "13:24:48 PDT"]
[Termination "Game drawn by stalemate"]

1. Nf3 {[%clk 0:04:58.7]} 1... d5 {[%clk 0:04:51.3]} 2. c4 {[%clk 0:04:56.3]}
2... d4 {[%clk 0:04:49.3]} 3. g3 {[%clk 0:04:53.6]} 3... c5 {[%clk 0:04:48.5]}
4. b4 {[%clk 0:04:50.4]} 4... cxb4 {[%clk 0:04:35.1]} 5. a3 {[%clk 0:04:49]}
5... bxa3 {[%clk 0:04:34.4]} 6. Bxa3 {[%clk 0:04:48.4]} 6... e6 {[%clk
0:04:32.7]} 7. Bg2 {[%clk 0:04:37.7]} 7... Bxa3 {[%clk 0:04:30.3]} 8. Qa4+
{[%clk 0:04:36.7]} 8... Nc6 {[%clk 0:04:29.6]} 9. Qxa3 {[%clk 0:04:35.7]} 9...
Nf6 {[%clk 0:04:27.5]} 10. d3 {[%clk 0:04:34.4]} 10... Bd7 {[%clk 0:04:23.4]}
11. O-O {[%clk 0:04:32.7]} 11... e5 {[%clk 0:04:21.3]} 12. Nbd2 {[%clk
0:04:31.5]} 12... Qe7 {[%clk 0:04:16]} 13. Rfb1 {[%clk 0:04:29.9]} 13... Qxa3
{[%clk 0:04:14.1]} 14. Rxa3 {[%clk 0:04:29.8]} 14... Bc8 {[%clk 0:03:35.2]} 15.
Ng5 {[%clk 0:04:22.5]} 15... O-O {[%clk 0:03:32.1]} 16. Nge4 {[%clk 0:04:20.7]}
16... Nxe4 {[%clk 0:03:22.3]} 17. Nxe4 {[%clk 0:04:19.3]} 17... Rb8 {[%clk
0:03:07.9]} 18. Nd6 {[%clk 0:04:14.9]} 18... Rd8 {[%clk 0:02:59.4]} 19. c5
{[%clk 0:04:00.3]} 19... a5 {[%clk 0:02:49.5]} 20. Bd5 {[%clk 0:03:56.3]} 20...
Be6 {[%clk 0:02:46]} 21. Bxe6 {[%clk 0:03:54.4]} 21... fxe6 {[%clk 0:02:44.8]}
22. Rxb7 {[%clk 0:03:46.4]} 22... Rxb7 {[%clk 0:02:40.4]} 23. Nxb7 {[%clk
0:03:45.5]} 23... Rd5 {[%clk 0:02:37.3]} 24. Nxa5 {[%clk 0:03:33.9]} 24... Rxc5
{[%clk 0:02:35.3]} 25. Nc4 {[%clk 0:03:32.7]} 25... e4 {[%clk 0:02:29.2]} 26.
Ra8+ {[%clk 0:03:17.5]} 26... Kf7 {[%clk 0:02:26.6]} 27. Rc8 {[%clk 0:03:16.3]}
27... exd3 {[%clk 0:02:15.7]} 28. exd3 {[%clk 0:03:14.7]} 28... Ke7 {[%clk
0:02:14.2]} 29. Rc7+ {[%clk 0:03:06.9]} 29... Kd8 {[%clk 0:02:10.2]} 30. Rxg7
{[%clk 0:03:02.3]} 30... Nb4 {[%clk 0:02:07.6]} 31. Rg4 {[%clk 0:02:14]} 31...
e5 {[%clk 0:01:58.5]} 32. f4 {[%clk 0:01:42.8]} 32... Nxd3 {[%clk 0:01:54.8]}
33. Nxe5 {[%clk 0:01:36.9]} 33... Rc1+ {[%clk 0:01:49.4]} 34. Kg2 {[%clk
0:01:32.5]} 34... Ne1+ {[%clk 0:01:47.6]} 35. Kh3 {[%clk 0:01:29.1]} 35... d3
{[%clk 0:01:45.6]} 36. f5 {[%clk 0:01:22.6]} 36... Nc2 {[%clk 0:01:40.1]} 37.
Nxd3 {[%clk 0:01:17.6]} 37... Rf1 {[%clk 0:01:38.2]} 38. Rf4 {[%clk 0:01:11.5]}
38... Rd1 {[%clk 0:01:31.6]} 39. f6 {[%clk 0:01:01.2]} 39... Ke8 {[%clk
0:01:28.3]} 40. f7+ {[%clk 0:00:59.3]} 40... Kf8 {[%clk 0:01:27.2]} 41. Nc5
{[%clk 0:00:54]} 41... Rd6 {[%clk 0:01:20.3]} 42. Rf2 {[%clk 0:00:28.3]} 42...
Ne3 {[%clk 0:01:16.9]} 43. Rf3 {[%clk 0:00:25]} 43... Nd5 {[%clk 0:01:15.4]} 44.
Kh4 {[%clk 0:00:20.4]} 44... h6 {[%clk 0:00:55.4]} 45. g4 {[%clk 0:00:19.2]}
45... Nf6 {[%clk 0:00:52.1]} 46. Rxf6 {[%clk 0:00:16.5]} 46... Rxf6 {[%clk
0:00:50.2]} 47. Nd7+ {[%clk 0:00:15.5]} 47... Kxf7 {[%clk 0:00:49.5]} 48. Nxf6
{[%clk 0:00:14.6]} 48... Kxf6 {[%clk 0:00:49.1]} 49. Kh5 {[%clk 0:00:13.9]}
49... Kg7 {[%clk 0:00:48.3]} 50. h4 {[%clk 0:00:12.2]} 50... Kh7 {[%clk
0:00:44.5]} 51. g5 {[%clk 0:00:11.5]} 51... hxg5 {[%clk 0:00:37.1]} 52. hxg5
{[%clk 0:00:11.4]} 52... Kg7 {[%clk 0:00:34.9]} 53. g6 {[%clk 0:00:07.9]} 53...
Kg8 {[%clk 0:00:30.8]} 54. Kg5 {[%clk 0:00:04.8]} 54... Kg7 {[%clk 0:00:26.6]}
55. Kf5 {[%clk 0:00:03.7]} 55... Kg8 {[%clk 0:00:25.3]} 56. Kf6 {[%clk 0:00:03]}
56... Kf8 {[%clk 0:00:24.4]} 57. g7+ {[%clk 0:00:02.5]} 57... Kg8 {[%clk
0:00:23.6]} 58. Kg6 {[%clk 0:00:01.9]} 1/2-1/2

[Event "Live Chess"]
[Site "Chess.com"]
[Date "2023.05.20"]
[Round "-"]
[White "hturner40"]
[Black "raminguy"]
[Result "0-1"]
[WhiteElo "1762"]
[BlackElo "1972"]
[TimeControl "300"]
[EndTime "13:24:54 PDT"]
[Termination "raminguy won by resignation"]

1. Nc3 {[%clk 0:04:54.3]} 1... Nf6 {[%clk 0:04:55.1]} 2. d4 {[%clk 0:04:51.1]}
2... d5 {[%clk 0:04:53.5]} 3. Bg5 {[%clk 0:04:48.7]} 3... e6 {[%clk 0:04:51.4]}
4. e4 {[%clk 0:04:45.8]} 4... Be7 {[%clk 0:04:49]} 5. e5 {[%clk 0:04:44.8]} 5...
Nfd7 {[%clk 0:04:47.4]} 6. h4 {[%clk 0:04:43.6]} 6... h6 {[%clk 0:04:45.5]} 7.
Bxe7 {[%clk 0:04:39.4]} 7... Qxe7 {[%clk 0:04:45.4]} 8. Qg4 {[%clk 0:04:36.6]}
8... Rg8 {[%clk 0:04:38.1]} 9. Bd3 {[%clk 0:04:26.6]} 9... Kf8 {[%clk
0:04:34.5]} 10. Rh3 {[%clk 0:04:19.7]} 10... c5 {[%clk 0:04:32.1]} 11. f4 {[%clk
0:04:11]} 11... c4 {[%clk 0:04:30.3]} 12. Be2 {[%clk 0:03:56.3]} 12... Qb4
{[%clk 0:04:28.2]} 13. O-O-O {[%clk 0:03:52.8]} 13... Nc6 {[%clk 0:04:22.3]} 14.
f5 {[%clk 0:03:49.3]} 14... exf5 {[%clk 0:04:17]} 15. Qxf5 {[%clk 0:03:48]}
15... Ndxe5 {[%clk 0:04:12.9]} 16. Qh5 {[%clk 0:03:30.8]} 16... Bxh3 {[%clk
0:04:10]} 17. Nxh3 {[%clk 0:03:26.7]} 17... Ng6 {[%clk 0:03:25.1]} 18. Qxd5
{[%clk 0:02:59.6]} 18... Rd8 {[%clk 0:03:17.4]} 19. Qxc4 {[%clk 0:02:51.1]}
19... Qxc4 {[%clk 0:03:15.3]} 20. Bxc4 {[%clk 0:02:49.6]} 20... Rxd4 {[%clk
0:03:14.7]} 21. Bd3 {[%clk 0:02:35.1]} 21... Nxh4 {[%clk 0:03:06.9]} 22. Nb5
{[%clk 0:02:26.4]} 22... Rd7 {[%clk 0:02:53.6]} 23. Nf4 {[%clk 0:02:15.2]} 23...
a6 {[%clk 0:02:23]} 24. Nc3 {[%clk 0:02:11.7]} 24... Nb4 {[%clk 0:02:17.8]} 25.
Rf1 {[%clk 0:01:49.4]} 25... Nxd3+ {[%clk 0:02:10.8]} 26. cxd3 {[%clk
0:01:47.2]} 26... Ke8 {[%clk 0:02:04.1]} 27. Re1+ {[%clk 0:01:43]} 27... Kd8
{[%clk 0:01:59.7]} 28. Re4 {[%clk 0:01:15.2]} 28... Nf5 {[%clk 0:01:56.3]} 29.
Nfd5 {[%clk 0:01:03.6]} 29... Re8 {[%clk 0:01:42.8]} 30. Rf4 {[%clk 0:01:01.9]}
30... Re5 {[%clk 0:01:38]} 31. g4 {[%clk 0:00:58]} 31... Rexd5 {[%clk
0:01:32.8]} 32. Nxd5 {[%clk 0:00:54]} 32... Rxd5 {[%clk 0:01:32.4]} 33. Rxf5
{[%clk 0:00:44.9]} 33... Rxf5 {[%clk 0:01:30.5]} 34. gxf5 {[%clk 0:00:43.4]}
34... Ke7 {[%clk 0:01:28]} 35. Kd2 {[%clk 0:00:41.2]} 35... Kf6 {[%clk
0:01:27.2]} 36. Ke3 {[%clk 0:00:37.3]} 36... Kxf5 {[%clk 0:01:26.1]} 37. Kd4
{[%clk 0:00:36.2]} 37... Ke6 {[%clk 0:01:25.5]} 38. Kc5 {[%clk 0:00:35.1]} 38...
Kd7 {[%clk 0:01:24.9]} 0-1

[Event "Live Chess"]
[Site "Chess.com"]
[Date "2023.05.20"]
[Round "-"]
[White "fso"]
[Black "toog"]
[Result "0-1"]
[WhiteElo "2261"]
[BlackElo "2616"]
[TimeControl "300"]
[EndTime "13:24:57 PDT"]
[Termination "toog won by resignation"]

1. e4 {[%clk 0:04:56.2]} 1... e5 {[%clk 0:04:58.6]} 2. Nf3 {[%clk 0:04:52.6]}
2... d6 {[%clk 0:04:58.2]} 3. d4 {[%clk 0:04:48.6]} 3... exd4 {[%clk 0:04:58.1]}
4. Nxd4 {[%clk 0:04:47.6]} 4... Nf6 {[%clk 0:04:57.6]} 5. Nc3 {[%clk 0:04:46.3]}
5... Be7 {[%clk 0:04:57.2]} 6. Be2 {[%clk 0:04:44.8]} 6... O-O {[%clk
0:04:56.7]} 7. O-O {[%clk 0:04:44.4]} 7... Re8 {[%clk 0:04:56]} 8. Kh1 {[%clk
0:04:43.5]} 8... Bf8 {[%clk 0:04:53.6]} 9. f4 {[%clk 0:04:42.8]} 9... Nxe4
{[%clk 0:04:49.9]} 10. Nxe4 {[%clk 0:04:37.4]} 10... Rxe4 {[%clk 0:04:49.8]} 11.
Bd3 {[%clk 0:04:35.8]} 11... Rxd4 {[%clk 0:04:46.5]} 12. Bxh7+ {[%clk
0:04:31.1]} 12... Kxh7 {[%clk 0:04:46.4]} 13. Qxd4 {[%clk 0:04:30.2]} 13... Nc6
{[%clk 0:04:44.8]} 14. Qd3+ {[%clk 0:04:25.6]} 14... g6 {[%clk 0:04:43.1]} 15.
f5 {[%clk 0:04:22.8]} 15... Bxf5 {[%clk 0:04:35.6]} 16. Rxf5 {[%clk 0:04:21.1]}
16... gxf5 {[%clk 0:04:35.5]} 17. Qxf5+ {[%clk 0:04:19.8]} 17... Kg8 {[%clk
0:04:35.1]} 18. Bg5 {[%clk 0:04:15.9]} 18... Qc8 {[%clk 0:04:31.1]} 19. Qf4
{[%clk 0:04:08.9]} 19... Qe6 {[%clk 0:04:29.4]} 20. Rf1 {[%clk 0:04:00.7]} 20...
Ne5 {[%clk 0:04:27.8]} 21. h3 {[%clk 0:03:48.7]} 21... Bg7 {[%clk 0:04:26]} 22.
b3 {[%clk 0:03:44.6]} 22... Re8 {[%clk 0:04:23.8]} 23. c4 {[%clk 0:03:41.2]}
23... Ng6 {[%clk 0:04:21.9]} 24. Qg3 {[%clk 0:03:39.5]} 24... Be5 {[%clk
0:04:20.4]} 25. Qf3 {[%clk 0:03:33.1]} 25... Kg7 {[%clk 0:04:18.5]} 26. h4
{[%clk 0:03:24.6]} 26... c6 {[%clk 0:04:16.9]} 27. h5 {[%clk 0:03:23.5]} 27...
Rh8 {[%clk 0:04:15.1]} 28. g4 {[%clk 0:03:12.5]} 28... Nf8 {[%clk 0:03:54.9]}
29. Kg2 {[%clk 0:03:07.8]} 29... Nh7 {[%clk 0:03:52.8]} 30. Bh4 {[%clk
0:02:50.7]} 30... Bf6 {[%clk 0:03:46.5]} 31. h6+ {[%clk 0:01:58.3]} 31... Kg6
{[%clk 0:03:00.2]} 32. Qd3+ {[%clk 0:01:43.8]} 32... Kxh6 {[%clk 0:02:57]} 33.
Bxf6 {[%clk 0:01:03.6]} 33... Nxf6 {[%clk 0:02:52.8]} 34. Qd2+ {[%clk
0:00:52.7]} 34... Kg6 {[%clk 0:02:50.2]} 35. Qd3+ {[%clk 0:00:50.2]} 35... Kg7
{[%clk 0:02:49.5]} 36. g5 {[%clk 0:00:46.7]} 36... Qe4+ {[%clk 0:02:47.6]} 37.
Qxe4 {[%clk 0:00:45.4]} 37... Nxe4 {[%clk 0:02:47.5]} 0-1

[Event "Live Chess"]
[Site "Chess.com"]
[Date "2023.05.20"]
[Round "-"]
[White "HoarseyHorsey"]
[Black "reshmiramachandran"]
[Result "1-0"]
[WhiteElo "1404"]
[BlackElo "507"]
[TimeControl "300"]
[EndTime "13:25:04 PDT"]
[Termination "HoarseyHorsey won by checkmate"]

1. d4 {[%clk 0:04:58.6]} 1... d5 {[%clk 0:04:56]} 2. c4 {[%clk 0:04:57.8]} 2...
e6 {[%clk 0:04:53.3]} 3. Nc3 {[%clk 0:04:56.6]} 3... Nc6 {[%clk 0:04:49.6]} 4.
Nf3 {[%clk 0:04:53.8]} 4... Nf6 {[%clk 0:04:47.3]} 5. cxd5 {[%clk 0:04:52.5]}
5... exd5 {[%clk 0:04:46]} 6. Bg5 {[%clk 0:04:50.9]} 6... Be7 {[%clk 0:04:44.4]}
7. e3 {[%clk 0:04:50]} 7... Bg4 {[%clk 0:04:41.7]} 8. h3 {[%clk 0:04:40.6]} 8...
Bxf3 {[%clk 0:04:39.7]} 9. Qxf3 {[%clk 0:04:39.6]} 9... h6 {[%clk 0:04:34.1]}
10. Bh4 {[%clk 0:04:37.8]} 10... O-O {[%clk 0:04:32.3]} 11. a3 {[%clk 0:04:36]}
11... Nh7 {[%clk 0:04:27.6]} 12. Bxe7 {[%clk 0:04:32.1]} 12... Qxe7 {[%clk
0:04:24.2]} 13. Bd3 {[%clk 0:04:31.7]} 13... Ng5 {[%clk 0:04:20.5]} 14. Qf5
{[%clk 0:04:26.8]} 14... Rad8 {[%clk 0:03:48.4]} 15. h4 {[%clk 0:04:21.1]} 15...
g6 {[%clk 0:03:44.8]} 16. Qg4 {[%clk 0:04:10.1]} 16... Ne6 {[%clk 0:03:29.7]}
17. h5 {[%clk 0:03:52.7]} 17... g5 {[%clk 0:03:27.4]} 18. Qf5 {[%clk 0:03:50.7]}
18... f6 {[%clk 0:03:17.3]} 19. Nxd5 {[%clk 0:03:45.3]} 19... Qg7 {[%clk
0:03:10.6]} 20. Qxe6+ {[%clk 0:03:39]} 20... Kh8 {[%clk 0:03:02.6]} 21. Qf5
{[%clk 0:03:25.3]} 21... Rfe8 {[%clk 0:02:42.7]} 22. Nxf6 {[%clk 0:03:16.5]}
22... Rf8 {[%clk 0:02:37.7]} 23. Qh7+ {[%clk 0:03:06.7]} 23... Qxh7 {[%clk
0:02:35.2]} 24. Nxh7 {[%clk 0:03:06.6]} 24... Rf7 {[%clk 0:02:16.8]} 25. Rc1
{[%clk 0:02:56.4]} 25... Rxh7 {[%clk 0:02:11.4]} 26. Bxh7 {[%clk 0:02:55.3]}
26... Kxh7 {[%clk 0:02:10.2]} 27. Rc5 {[%clk 0:02:51.8]} 27... Rd6 {[%clk
0:01:57.2]} 28. Ke2 {[%clk 0:02:45.2]} 28... b6 {[%clk 0:01:54]} 29. Rc3 {[%clk
0:02:38.4]} 29... Na5 {[%clk 0:00:50.6]} 30. Rxc7+ {[%clk 0:02:35]} 30... Kg8
{[%clk 0:00:48.3]} 31. Rhc1 {[%clk 0:02:24.9]} 31... Rd8 {[%clk 0:00:37.4]} 32.
Rc8 {[%clk 0:02:22.9]} 32... Rxc8 {[%clk 0:00:35.4]} 33. Rxc8+ {[%clk
0:02:22.8]} 33... Kf7 {[%clk 0:00:33.3]} 34. Rc7+ {[%clk 0:02:21.9]} 34... Ke6
{[%clk 0:00:30]} 35. Rxa7 {[%clk 0:02:21.1]} 35... Nc4 {[%clk 0:00:22.8]} 36. b3
{[%clk 0:02:15.9]} 36... Na5 {[%clk 0:00:19.4]} 37. b4 {[%clk 0:02:10.8]} 37...
Nc6 {[%clk 0:00:18]} 38. Ra6 {[%clk 0:02:07.3]} 38... Nb8 {[%clk 0:00:16.2]} 39.
Rxb6+ {[%clk 0:02:06.1]} 39... Kd7 {[%clk 0:00:14.1]} 40. Rxb8 {[%clk 0:02:06]}
40... Kc7 {[%clk 0:00:13.3]} 41. Rh8 {[%clk 0:02:05.1]} 41... Kd7 {[%clk
0:00:12.4]} 42. Rxh6 {[%clk 0:02:04.8]} 42... Ke7 {[%clk 0:00:11.8]} 43. Rg6
{[%clk 0:02:04.6]} 43... Kf7 {[%clk 0:00:11.4]} 44. Rxg5 {[%clk 0:02:03.7]}
44... Ke6 {[%clk 0:00:10.6]} 45. Re5+ {[%clk 0:02:03.5]} 45... Kf6 {[%clk
0:00:09.9]} 46. b5 {[%clk 0:02:02.4]} 46... Kf7 {[%clk 0:00:09.1]} 47. b6 {[%clk
0:02:02.3]} 47... Kf8 {[%clk 0:00:07.9]} 48. b7 {[%clk 0:02:02.2]} 48... Kf7
{[%clk 0:00:07.4]} 49. b8=Q {[%clk 0:02:01.7]} 49... Kf6 {[%clk 0:00:07]} 50.
Qd6+ {[%clk 0:02:00.5]} 50... Kf7 {[%clk 0:00:06.5]} 51. Re7+ {[%clk 0:02:00.4]}
51... Kf8 {[%clk 0:00:05.3]} 52. Qd8# {[%clk 0:02:00.3]} 1-0

[Event "Live Chess"]
[Site "Chess.com"]
[Date "2023.05.20"]
[Round "-"]
[White "gmnorfolk"]
[Black "friarnator"]
[Result "1-0"]
[WhiteElo "2082"]
[BlackElo "1979"]
[TimeControl "300"]
[EndTime "13:25:12 PDT"]
[Termination "gmnorfolk won by resignation"]

1. d4 {[%clk 0:04:58.4]} 1... Nf6 {[%clk 0:04:58.4]} 2. c4 {[%clk 0:04:55.2]}
2... e5 {[%clk 0:04:57.1]} 3. dxe5 {[%clk 0:04:52.2]} 3... Ng4 {[%clk
0:04:56.2]} 4. e4 {[%clk 0:04:51.5]} 4... Nxe5 {[%clk 0:04:54.6]} 5. f4 {[%clk
0:04:51]} 5... Nec6 {[%clk 0:04:53.7]} 6. Nf3 {[%clk 0:04:48.5]} 6... Bb4+
{[%clk 0:04:52.7]} 7. Bd2 {[%clk 0:04:45.3]} 7... Na6 {[%clk 0:04:51.4]} 8. a3
{[%clk 0:04:43.6]} 8... Bxd2+ {[%clk 0:04:49.8]} 9. Nbxd2 {[%clk 0:04:42.5]}
9... Qe7 {[%clk 0:04:49.7]} 10. b4 {[%clk 0:04:41.3]} 10... Nab8 {[%clk
0:04:29.5]} 11. Bd3 {[%clk 0:04:38.9]} 11... d6 {[%clk 0:04:26.6]} 12. O-O
{[%clk 0:04:36.2]} 12... O-O {[%clk 0:04:25.1]} 13. Qc2 {[%clk 0:04:32.7]} 13...
h6 {[%clk 0:04:22.4]} 14. Rae1 {[%clk 0:04:31.5]} 14... Bg4 {[%clk 0:04:19.5]}
15. h3 {[%clk 0:04:29.9]} 15... Bxf3 {[%clk 0:04:18.1]} 16. Nxf3 {[%clk
0:04:29.8]} 16... Nd7 {[%clk 0:04:17.1]} 17. b5 {[%clk 0:04:25.4]} 17... Nd8
{[%clk 0:04:14.3]} 18. Nd4 {[%clk 0:04:23.9]} 18... Nc5 {[%clk 0:04:04]} 19. Nf5
{[%clk 0:04:22.7]} 19... Qd7 {[%clk 0:03:54.7]} 20. Qc3 {[%clk 0:04:14.3]} 20...
Nde6 {[%clk 0:03:51.4]} 21. Bc2 {[%clk 0:04:10.4]} 21... a6 {[%clk 0:03:45.5]}
22. a4 {[%clk 0:04:07.2]} 22... axb5 {[%clk 0:03:44]} 23. axb5 {[%clk
0:04:06.7]} 23... b6 {[%clk 0:03:42]} 24. Rd1 {[%clk 0:03:57.3]} 24... Na4
{[%clk 0:03:35.3]} 25. Qg3 {[%clk 0:03:39.2]} 25... Kh8 {[%clk 0:03:29.8]} 26.
e5 {[%clk 0:03:36.4]} 26... Rfd8 {[%clk 0:03:06.2]} 27. exd6 {[%clk 0:03:32.5]}
27... cxd6 {[%clk 0:03:06.1]} 28. Nxd6 {[%clk 0:03:24]} 28... Qc7 {[%clk
0:03:02.3]} 29. f5 {[%clk 0:03:12.9]} 29... Qc5+ {[%clk 0:03:00.9]} 30. Kh1
{[%clk 0:03:08.2]} 30... Rxd6 {[%clk 0:02:58.9]} 31. Rxd6 {[%clk 0:02:57.8]}
31... Nd4 {[%clk 0:02:56.6]} 32. f6 {[%clk 0:02:19.9]} 32... gxf6 {[%clk
0:02:39.5]} 33. Rdxf6 {[%clk 0:02:14.6]} 33... Qg5 {[%clk 0:02:37.7]} 34. Qxg5
{[%clk 0:01:52.1]} 34... hxg5 {[%clk 0:02:37.6]} 35. Be4 {[%clk 0:01:49.8]}
35... Rc8 {[%clk 0:02:29.5]} 36. Bd5 {[%clk 0:01:45.7]} 36... Ne2 {[%clk
0:02:25.1]} 37. Kh2 {[%clk 0:01:38.9]} 37... Nf4 {[%clk 0:02:21.7]} 38. Rxf7
{[%clk 0:01:32.3]} 38... Nxd5 {[%clk 0:02:19.1]} 39. cxd5 {[%clk 0:01:31.3]}
39... Rc5 {[%clk 0:02:15.5]} 40. Rb7 {[%clk 0:01:23.3]} 40... Rxd5 {[%clk
0:02:13.5]} 1-0